{"text_format":"3","workbook":"xlsx","n_sheets":3,"sheets":["الجدول الزمني اليومي","مجدول الأحداث","الفاصل الزمني"],"not_rendered":{"defined_names":21},"read":"whole","date_system":"1900"}

{"sheet":"الجدول الزمني اليومي","index":0,"n_rows":76,"n_cols":13,"rows_kept":76,"merged":[[0,1,0,2],[1,1,5,2],[2,12,4,12],[3,7,4,7],[5,12,7,12],[6,1,8,2],[8,12,10,12],[9,7,10,7],[10,1,10,2],[11,12,13,12],[14,12,16,12],[15,7,16,7],[17,12,19,12],[18,1,18,2],[20,12,22,12],[21,7,22,7],[23,12,25,12],[24,1,24,2],[25,1,25,2],[26,7,27,7],[26,12,28,12],[29,12,31,12],[31,7,32,7],[32,12,34,12]]}
[null,"الجدول الزمني اليومي"]
[null,{"$f":"IFERROR(DAY(DateVal),\"\")","v":28},null,null,"الوقت",{"$f":"IFERROR(UPPER(TEXT(DATE(ReportYear,MonthNumber,ReportDay),\"d mmmm yyyy\")),\"\")","v":"28 يونيو 2022"},null,"إلقاء نظرة سريعة على الأسبوع",{"$nulls":3},"ملاحظات / قائمة المهام"]
[{"$nulls":4},"الوقت","الوصف",null,{"$f":"IFERROR(TEXT(DATEVALUE(DateVal)+1,\"dddd\"),\"\")","v":"الأربعاء"},{"$f":"IFERROR(INDEX(مجدول_الأحداث[],MATCH($H$6&\"|\"&ROW(A1),مجدول_الأحداث[قيمة فريدة (محسوبة)],0),2),\"\")","v":""},{"$f":"IFERROR(INDEX(مجدول_الأحداث[],MATCH($H$6&\"|\"&ROW(A1),مجدول_الأحداث[قيمة فريدة (محسوبة)],0),3),\"\")","v":""},null,null,"استلام الملابس من المغسلة"]
[{"$nulls":4},{"$f":"'الفاصل الزمني'!E3","v":"06:00:00"},{"$f":"IFERROR(INDEX(مجدول_الأحداث[],MATCH(DATEVALUE(DateVal)&الجدول_اليومي[[#This Row],[الوقت]],LookUpDateAndTime,0),3),\"\")","v":"الاستيقاظ"},null,{"$f":"IFERROR(TEXT(DATEVALUE(DateVal)+1,\"d\"),\"\")","v":"29"},{"$f":"IFERROR(INDEX(مجدول_الأحداث[],MATCH($H$6&\"|\"&ROW(A2),مجدول_الأحداث[قيمة فريدة (محسوبة)],0),2),\"\")","v":"06:30:00"},{"$f":"IFERROR(INDEX(مجدول_الأحداث[],MATCH($H$6&\"|\"&ROW(A2),مجدول_الأحداث[قيمة فريدة (محسوبة)],0),3),\"\")","v":"الإفطار"}]
[{"$nulls":4},{"$f":"'الفاصل الزمني'!E4","v":"06:15:00"},{"$f":"IFERROR(INDEX(مجدول_الأحداث[],MATCH(DATEVALUE(DateVal)&الجدول_اليومي[[#This Row],[الوقت]],LookUpDateAndTime,0),3),\"\")","v":""},null,null,{"$f":"IFERROR(INDEX(مجدول_الأحداث[],MATCH($H$6&\"|\"&ROW(A3),مجدول_الأحداث[قيمة فريدة (محسوبة)],0),2),\"\")","v":""},{"$f":"IFERROR(INDEX(مجدول_الأحداث[],MATCH($H$6&\"|\"&ROW(A3),مجدول_الأحداث[قيمة فريدة (محسوبة)],0),3),\"\")","v":""}]
[{"$nulls":4},{"$f":"'الفاصل الزمني'!E5","v":"06:30:00"},{"$f":"IFERROR(INDEX(مجدول_الأحداث[],MATCH(DATEVALUE(DateVal)&الجدول_اليومي[[#This Row],[الوقت]],LookUpDateAndTime,0),3),\"\")","v":"الاستحمام"},null,{"$f":"IFERROR(DateVal+1,\"\")","v":"2022-06-29"},{"$f":"IFERROR(INDEX(مجدول_الأحداث[],MATCH($H$6&\"|\"&ROW(A4),مجدول_الأحداث[قيمة فريدة (محسوبة)],0),2),\"\")","v":""},{"$f":"IFERROR(INDEX(مجدول_الأحداث[],MATCH($H$6&\"|\"&ROW(A4),مجدول_الأحداث[قيمة فريدة (محسوبة)],0),3),\"\")","v":""},null,null,"الاتصال بشركة الكبلات"]
[null,{"$f":"IFERROR(TEXT(DateVal,\"dddd\"),\"\")","v":"الثلاثاء"},null,null,{"$f":"'الفاصل الزمني'!E6","v":"06:45:00"},{"$f":"IFERROR(INDEX(مجدول_الأحداث[],MATCH(DATEVALUE(DateVal)&الجدول_اليومي[[#This Row],[الوقت]],LookUpDateAndTime,0),3),\"\")","v":""},null,null,{"$f":"IFERROR(INDEX(مجدول_الأحداث[],MATCH($H$6&\"|\"&ROW(A5),مجدول_الأحداث[قيمة فريدة (محسوبة)],0),2),\"\")","v":""},{"$f":"IFERROR(INDEX(مجدول_الأحداث[],MATCH($H$6&\"|\"&ROW(A5),مجدول_الأحداث[قيمة فريدة (محسوبة)],0),3),\"\")","v":""}]
[{"$nulls":4},{"$f":"'الفاصل الزمني'!E7","v":"07:00:00"},{"$f":"IFERROR(INDEX(مجدول_الأحداث[],MATCH(DATEVALUE(DateVal)&الجدول_اليومي[[#This Row],[الوقت]],LookUpDateAndTime,0),3),\"\")","v":""},null,null,{"$f":"IFERROR(INDEX(مجدول_الأحداث[],MATCH($H$6&\"|\"&ROW(A6),مجدول_الأحداث[قيمة فريدة (محسوبة)],0),2),\"\")","v":""},{"$f":"IFERROR(INDEX(مجدول_الأحداث[],MATCH($H$6&\"|\"&ROW(A6),مجدول_الأحداث[قيمة فريدة (محسوبة)],0),3),\"\")","v":""}]
[{"$nulls":4},{"$f":"'الفاصل الزمني'!E8","v":"07:15:00"},{"$f":"IFERROR(INDEX(مجدول_الأحداث[],MATCH(DATEVALUE(DateVal)&الجدول_اليومي[[#This Row],[الوقت]],LookUpDateAndTime,0),3),\"\")","v":""},null,{"$f":"IFERROR(TEXT(DATEVALUE(DateVal)+2,\"dddd\"),\"\")","v":"الخميس"},{"$f":"IFERROR(INDEX(مجدول_الأحداث[],MATCH($H$12&\"|\"&ROW(A1),مجدول_الأحداث[قيمة فريدة (محسوبة)],0),2),\"\")","v":""},{"$f":"IFERROR(INDEX(مجدول_الأحداث[],MATCH($H$12&\"|\"&ROW(A1),مجدول_الأحداث[قيمة فريدة (محسوبة)],0),3),\"\")","v":""}]
[{"$nulls":4},{"$f":"'الفاصل الزمني'!E9","v":"07:30:00"},{"$f":"IFERROR(INDEX(مجدول_الأحداث[],MATCH(DATEVALUE(DateVal)&الجدول_اليومي[[#This Row],[الوقت]],LookUpDateAndTime,0),3),\"\")","v":"المغادرة للعمل"},null,{"$f":"IFERROR(TEXT(DATEVALUE(DateVal)+2,\"d\"),\"\")","v":"30"},{"$f":"IFERROR(INDEX(مجدول_الأحداث[],MATCH($H$12&\"|\"&ROW(A2),مجدول_الأحداث[قيمة فريدة (محسوبة)],0),2),\"\")","v":""},{"$f":"IFERROR(INDEX(مجدول_الأحداث[],MATCH($H$12&\"|\"&ROW(A2),مجدول_الأحداث[قيمة فريدة (محسوبة)],0),3),\"\")","v":""}]
[null,"عرض الجدول",null,null,{"$f":"'الفاصل الزمني'!E10","v":"07:45:00"},{"$f":"IFERROR(INDEX(مجدول_الأحداث[],MATCH(DATEVALUE(DateVal)&الجدول_اليومي[[#This Row],[الوقت]],LookUpDateAndTime,0),3),\"\")","v":""},null,null,{"$f":"IFERROR(INDEX(مجدول_الأحداث[],MATCH($H$12&\"|\"&ROW(A3),مجدول_الأحداث[قيمة فريدة (محسوبة)],0),2),\"\")","v":""},{"$f":"IFERROR(INDEX(مجدول_الأحداث[],MATCH($H$12&\"|\"&ROW(A3),مجدول_الأحداث[قيمة فريدة (محسوبة)],0),3),\"\")","v":""}]
[{"$nulls":4},{"$f":"'الفاصل الزمني'!E11","v":"08:00:00"},{"$f":"IFERROR(INDEX(مجدول_الأحداث[],MATCH(DATEVALUE(DateVal)&الجدول_اليومي[[#This Row],[الوقت]],LookUpDateAndTime,0),3),\"\")","v":"بدء الوردية"},null,{"$f":"IFERROR(DateVal+2,\"\")","v":"2022-06-30"},{"$f":"IFERROR(INDEX(مجدول_الأحداث[],MATCH($H$12&\"|\"&ROW(A4),مجدول_الأحداث[قيمة فريدة (محسوبة)],0),2),\"\")","v":""},{"$f":"IFERROR(INDEX(مجدول_الأحداث[],MATCH($H$12&\"|\"&ROW(A4),مجدول_الأحداث[قيمة فريدة (محسوبة)],0),3),\"\")","v":""}]
[null,"السنة",null,null,{"$f":"'الفاصل الزمني'!E12","v":"08:15:00"},{"$f":"IFERROR(INDEX(مجدول_الأحداث[],MATCH(DATEVALUE(DateVal)&الجدول_اليومي[[#This Row],[الوقت]],LookUpDateAndTime,0),3),\"\")","v":""},null,null,{"$f":"IFERROR(INDEX(مجدول_الأحداث[],MATCH($H$12&\"|\"&ROW(A5),مجدول_الأحداث[قيمة فريدة (محسوبة)],0),2),\"\")","v":""},{"$f":"IFERROR(INDEX(مجدول_الأحداث[],MATCH($H$12&\"|\"&ROW(A5),مجدول_الأحداث[قيمة فريدة (محسوبة)],0),3),\"\")","v":""}]
[{"$nulls":4},{"$f":"'الفاصل الزمني'!E13","v":"08:30:00"},{"$f":"IFERROR(INDEX(مجدول_الأحداث[],MATCH(DATEVALUE(DateVal)&الجدول_اليومي[[#This Row],[الوقت]],LookUpDateAndTime,0),3),\"\")","v":""},null,null,{"$f":"IFERROR(INDEX(مجدول_الأحداث[],MATCH($H$12&\"|\"&ROW(A6),مجدول_الأحداث[قيمة فريدة (محسوبة)],0),2),\"\")","v":""},{"$f":"IFERROR(INDEX(مجدول_الأحداث[],MATCH($H$12&\"|\"&ROW(A6),مجدول_الأحداث[قيمة فريدة (محسوبة)],0),3),\"\")","v":""}]
[null,"الشهر",null,null,{"$f":"'الفاصل الزمني'!E14","v":"08:45:00"},{"$f":"IFERROR(INDEX(مجدول_الأحداث[],MATCH(DATEVALUE(DateVal)&الجدول_اليومي[[#This Row],[الوقت]],LookUpDateAndTime,0),3),\"\")","v":""},null,{"$f":"IFERROR(TEXT(DATEVALUE(DateVal)+3,\"dddd\"),\"\")","v":"الجمعة"},{"$f":"IFERROR(INDEX(مجدول_الأحداث[],MATCH($H$18&\"|\"&ROW(A1),مجدول_الأحداث[قيمة فريدة (محسوبة)],0),2),\"\")","v":""},{"$f":"IFERROR(INDEX(مجدول_الأحداث[],MATCH($H$18&\"|\"&ROW(A1),مجدول_الأحداث[قيمة فريدة (محسوبة)],0),3),\"\")","v":""}]
[{"$nulls":4},{"$f":"'الفاصل الزمني'!E15","v":"09:00:00"},{"$f":"IFERROR(INDEX(مجدول_الأحداث[],MATCH(DATEVALUE(DateVal)&الجدول_اليومي[[#This Row],[الوقت]],LookUpDateAndTime,0),3),\"\")","v":""},null,{"$f":"IFERROR(TEXT(DATEVALUE(DateVal)+3,\"d\"),\"\")","v":"1"},{"$f":"IFERROR(INDEX(مجدول_الأحداث[],MATCH($H$18&\"|\"&ROW(A2),مجدول_الأحداث[قيمة فريدة (محسوبة)],0),2),\"\")","v":""},{"$f":"IFERROR(INDEX(مجدول_الأحداث[],MATCH($H$18&\"|\"&ROW(A2),مجدول_الأحداث[قيمة فريدة (محسوبة)],0),3),\"\")","v":""}]
[null,"اليوم",null,null,{"$f":"'الفاصل الزمني'!E16","v":"09:15:00"},{"$f":"IFERROR(INDEX(مجدول_الأحداث[],MATCH(DATEVALUE(DateVal)&الجدول_اليومي[[#This Row],[الوقت]],LookUpDateAndTime,0),3),\"\")","v":""},null,null,{"$f":"IFERROR(INDEX(مجدول_الأحداث[],MATCH($H$18&\"|\"&ROW(A3),مجدول_الأحداث[قيمة فريدة (محسوبة)],0),2),\"\")","v":""},{"$f":"IFERROR(INDEX(مجدول_الأحداث[],MATCH($H$18&\"|\"&ROW(A3),مجدول_الأحداث[قيمة فريدة (محسوبة)],0),3),\"\")","v":""}]
[{"$nulls":4},{"$f":"'الفاصل الزمني'!E17","v":"09:30:00"},{"$f":"IFERROR(INDEX(مجدول_الأحداث[],MATCH(DATEVALUE(DateVal)&الجدول_اليومي[[#This Row],[الوقت]],LookUpDateAndTime,0),3),\"\")","v":""},null,{"$f":"IFERROR(DateVal+3,\"\")","v":"2022-07-01"},{"$f":"IFERROR(INDEX(مجدول_الأحداث[],MATCH($H$18&\"|\"&ROW(A4),مجدول_الأحداث[قيمة فريدة (محسوبة)],0),2),\"\")","v":""},{"$f":"IFERROR(INDEX(مجدول_الأحداث[],MATCH($H$18&\"|\"&ROW(A4),مجدول_الأحداث[قيمة فريدة (محسوبة)],0),3),\"\")","v":""}]
[null,"تحرير الجدول",null,null,{"$f":"'الفاصل الزمني'!E18","v":"09:45:00"},{"$f":"IFERROR(INDEX(مجدول_الأحداث[],MATCH(DATEVALUE(DateVal)&الجدول_اليومي[[#This Row],[الوقت]],LookUpDateAndTime,0),3),\"\")","v":""},null,null,{"$f":"IFERROR(INDEX(مجدول_الأحداث[],MATCH($H$18&\"|\"&ROW(A5),مجدول_الأحداث[قيمة فريدة (محسوبة)],0),2),\"\")","v":""},{"$f":"IFERROR(INDEX(مجدول_الأحداث[],MATCH($H$18&\"|\"&ROW(A5),مجدول_الأحداث[قيمة فريدة (محسوبة)],0),3),\"\")","v":""}]
[{"$nulls":4},{"$f":"'الفاصل الزمني'!E19","v":"10:00:00"},{"$f":"IFERROR(INDEX(مجدول_الأحداث[],MATCH(DATEVALUE(DateVal)&الجدول_اليومي[[#This Row],[الوقت]],LookUpDateAndTime,0),3),\"\")","v":"استراحة"},null,null,{"$f":"IFERROR(INDEX(مجدول_الأحداث[],MATCH($H$18&\"|\"&ROW(A6),مجدول_الأحداث[قيمة فريدة (محسوبة)],0),2),\"\")","v":""},{"$f":"IFERROR(INDEX(مجدول_الأحداث[],MATCH($H$18&\"|\"&ROW(A6),مجدول_الأحداث[قيمة فريدة (محسوبة)],0),3),\"\")","v":""}]
[null,"حدد لتحرير الفواصل الزمنية",null,null,{"$f":"'الفاصل الزمني'!E20","v":"10:15:00"},{"$f":"IFERROR(INDEX(مجدول_الأحداث[],MATCH(DATEVALUE(DateVal)&الجدول_اليومي[[#This Row],[الوقت]],LookUpDateAndTime,0),3),\"\")","v":""},null,{"$f":"IFERROR(TEXT(DATEVALUE(DateVal)+4,\"dddd\"),\"\")","v":"السبت"},{"$f":"IFERROR(INDEX(مجدول_الأحداث[],MATCH($H$24&\"|\"&ROW(A1),مجدول_الأحداث[قيمة فريدة (محسوبة)],0),2),\"\")","v":""},{"$f":"IFERROR(INDEX(مجدول_الأحداث[],MATCH($H$24&\"|\"&ROW(A1),مجدول_الأحداث[قيمة فريدة (محسوبة)],0),3),\"\")","v":""}]
[{"$nulls":4},{"$f":"'الفاصل الزمني'!E21","v":"10:30:00"},{"$f":"IFERROR(INDEX(مجدول_الأحداث[],MATCH(DATEVALUE(DateVal)&الجدول_اليومي[[#This Row],[الوقت]],LookUpDateAndTime,0),3),\"\")","v":""},null,{"$f":"IFERROR(TEXT(DATEVALUE(DateVal)+4,\"d\"),\"\")","v":"2"},{"$f":"IFERROR(INDEX(مجدول_الأحداث[],MATCH($H$24&\"|\"&ROW(A2),مجدول_الأحداث[قيمة فريدة (محسوبة)],0),2),\"\")","v":""},{"$f":"IFERROR(INDEX(مجدول_الأحداث[],MATCH($H$24&\"|\"&ROW(A2),مجدول_الأحداث[قيمة فريدة (محسوبة)],0),3),\"\")","v":""}]
[null,"حدد لإضافة حدث جديد",null,null,{"$f":"'الفاصل الزمني'!E22","v":"10:45:00"},{"$f":"IFERROR(INDEX(مجدول_الأحداث[],MATCH(DATEVALUE(DateVal)&الجدول_اليومي[[#This Row],[الوقت]],LookUpDateAndTime,0),3),\"\")","v":""},null,null,{"$f":"IFERROR(INDEX(مجدول_الأحداث[],MATCH($H$24&\"|\"&ROW(A3),مجدول_الأحداث[قيمة فريدة (محسوبة)],0),2),\"\")","v":""},{"$f":"IFERROR(INDEX(مجدول_الأحداث[],MATCH($H$24&\"|\"&ROW(A3),مجدول_الأحداث[قيمة فريدة (محسوبة)],0),3),\"\")","v":""}]
[{"$nulls":4},{"$f":"'الفاصل الزمني'!E23","v":"11:00:00"},{"$f":"IFERROR(INDEX(مجدول_الأحداث[],MATCH(DATEVALUE(DateVal)&الجدول_اليومي[[#This Row],[الوقت]],LookUpDateAndTime,0),3),\"\")","v":""},null,{"$f":"IFERROR(DateVal+4,\"\")","v":"2022-07-02"},{"$f":"IFERROR(INDEX(مجدول_الأحداث[],MATCH($H$24&\"|\"&ROW(A4),مجدول_الأحداث[قيمة فريدة (محسوبة)],0),2),\"\")","v":""},{"$f":"IFERROR(INDEX(مجدول_الأحداث[],MATCH($H$24&\"|\"&ROW(A4),مجدول_الأحداث[قيمة فريدة (محسوبة)],0),3),\"\")","v":""}]
[null,"مميز في الجدول:",null,null,{"$f":"'الفاصل الزمني'!E24","v":"11:15:00"},{"$f":"IFERROR(INDEX(مجدول_الأحداث[],MATCH(DATEVALUE(DateVal)&الجدول_اليومي[[#This Row],[الوقت]],LookUpDateAndTime,0),3),\"\")","v":""},null,null,{"$f":"IFERROR(INDEX(مجدول_الأحداث[],MATCH($H$24&\"|\"&ROW(A5),مجدول_الأحداث[قيمة فريدة (محسوبة)],0),2),\"\")","v":""},{"$f":"IFERROR(INDEX(مجدول_الأحداث[],MATCH($H$24&\"|\"&ROW(A5),مجدول_الأحداث[قيمة فريدة (محسوبة)],0),3),\"\")","v":""}]
[null,"استراحة",null,null,{"$f":"'الفاصل الزمني'!E25","v":"11:30:00"},{"$f":"IFERROR(INDEX(مجدول_الأحداث[],MATCH(DATEVALUE(DateVal)&الجدول_اليومي[[#This Row],[الوقت]],LookUpDateAndTime,0),3),\"\")","v":""},null,{"$f":"IFERROR(TEXT(DATEVALUE(DateVal)+5,\"dddd\"),\"\")","v":"الأحد"},{"$f":"IFERROR(INDEX(مجدول_الأحداث[],MATCH($H$29&\"|\"&ROW(A1),مجدول_الأحداث[قيمة فريدة (محسوبة)],0),2),\"\")","v":""},{"$f":"IFERROR(INDEX(مجدول_الأحداث[],MATCH($H$29&\"|\"&ROW(A1),مجدول_الأحداث[قيمة فريدة (محسوبة)],0),3),\"\")","v":""}]
[{"$nulls":4},{"$f":"'الفاصل الزمني'!E26","v":"11:45:00"},{"$f":"IFERROR(INDEX(مجدول_الأحداث[],MATCH(DATEVALUE(DateVal)&الجدول_اليومي[[#This Row],[الوقت]],LookUpDateAndTime,0),3),\"\")","v":""},null,{"$f":"IFERROR(TEXT(DATEVALUE(DateVal)+5,\"d\"),\"\")","v":"3"},{"$f":"IFERROR(INDEX(مجدول_الأحداث[],MATCH($H$29&\"|\"&ROW(A2),مجدول_الأحداث[قيمة فريدة (محسوبة)],0),2),\"\")","v":""},{"$f":"IFERROR(INDEX(مجدول_الأحداث[],MATCH($H$29&\"|\"&ROW(A2),مجدول_الأحداث[قيمة فريدة (محسوبة)],0),3),\"\")","v":""}]
[{"$nulls":4},{"$f":"'الفاصل الزمني'!E27","v":"12:00:00"},{"$f":"IFERROR(INDEX(مجدول_الأحداث[],MATCH(DATEVALUE(DateVal)&الجدول_اليومي[[#This Row],[الوقت]],LookUpDateAndTime,0),3),\"\")","v":"الغداء"},null,null,{"$f":"IFERROR(INDEX(مجدول_الأحداث[],MATCH($H$29&\"|\"&ROW(A3),مجدول_الأحداث[قيمة فريدة (محسوبة)],0),2),\"\")","v":""},{"$f":"IFERROR(INDEX(مجدول_الأحداث[],MATCH($H$29&\"|\"&ROW(A3),مجدول_الأحداث[قيمة فريدة (محسوبة)],0),3),\"\")","v":""}]
[{"$nulls":4},{"$f":"'الفاصل الزمني'!E28","v":"12:15:00"},{"$f":"IFERROR(INDEX(مجدول_الأحداث[],MATCH(DATEVALUE(DateVal)&الجدول_اليومي[[#This Row],[الوقت]],LookUpDateAndTime,0),3),\"\")","v":""},null,{"$f":"IFERROR(DateVal+5,\"\")","v":"2022-07-03"},{"$f":"IFERROR(INDEX(مجدول_الأحداث[],MATCH($H$29&\"|\"&ROW(A4),مجدول_الأحداث[قيمة فريدة (محسوبة)],0),2),\"\")","v":""},{"$f":"IFERROR(INDEX(مجدول_الأحداث[],MATCH($H$29&\"|\"&ROW(A4),مجدول_الأحداث[قيمة فريدة (محسوبة)],0),3),\"\")","v":""}]
[{"$nulls":4},{"$f":"'الفاصل الزمني'!E29","v":"12:30:00"},{"$f":"IFERROR(INDEX(مجدول_الأحداث[],MATCH(DATEVALUE(DateVal)&الجدول_اليومي[[#This Row],[الوقت]],LookUpDateAndTime,0),3),\"\")","v":""},null,null,{"$f":"IFERROR(INDEX(مجدول_الأحداث[],MATCH($H$29&\"|\"&ROW(A5),مجدول_الأحداث[قيمة فريدة (محسوبة)],0),2),\"\")","v":""},{"$f":"IFERROR(INDEX(مجدول_الأحداث[],MATCH($H$29&\"|\"&ROW(A5),مجدول_الأحداث[قيمة فريدة (محسوبة)],0),3),\"\")","v":""}]
[{"$nulls":4},{"$f":"'الفاصل الزمني'!E30","v":"12:45:00"},{"$f":"IFERROR(INDEX(مجدول_الأحداث[],MATCH(DATEVALUE(DateVal)&الجدول_اليومي[[#This Row],[الوقت]],LookUpDateAndTime,0),3),\"\")","v":""},null,{"$f":"IFERROR(TEXT(DATEVALUE(DateVal)+6,\"dddd\"),\"\")","v":"الإثنين"},{"$f":"IFERROR(INDEX(مجدول_الأحداث[],MATCH($H$34&\"|\"&ROW(A1),مجدول_الأحداث[قيمة فريدة (محسوبة)],0),2),\"\")","v":""},{"$f":"IFERROR(INDEX(مجدول_الأحداث[],MATCH($H$34&\"|\"&ROW(A1),مجدول_الأحداث[قيمة فريدة (محسوبة)],0),3),\"\")","v":""}]
[{"$nulls":4},{"$f":"'الفاصل الزمني'!E31","v":"13:00:00"},{"$f":"IFERROR(INDEX(مجدول_الأحداث[],MATCH(DATEVALUE(DateVal)&الجدول_اليومي[[#This Row],[الوقت]],LookUpDateAndTime,0),3),\"\")","v":""},null,{"$f":"IFERROR(TEXT(DATEVALUE(DateVal)+6,\"d\"),\"\")","v":"4"},{"$f":"IFERROR(INDEX(مجدول_الأحداث[],MATCH($H$34&\"|\"&ROW(A2),مجدول_الأحداث[قيمة فريدة (محسوبة)],0),2),\"\")","v":""},{"$f":"IFERROR(INDEX(مجدول_الأحداث[],MATCH($H$34&\"|\"&ROW(A2),مجدول_الأحداث[قيمة فريدة (محسوبة)],0),3),\"\")","v":""}]
[{"$nulls":4},{"$f":"'الفاصل الزمني'!E32","v":"13:15:00"},{"$f":"IFERROR(INDEX(مجدول_الأحداث[],MATCH(DATEVALUE(DateVal)&الجدول_اليومي[[#This Row],[الوقت]],LookUpDateAndTime,0),3),\"\")","v":""},null,null,{"$f":"IFERROR(INDEX(مجدول_الأحداث[],MATCH($H$34&\"|\"&ROW(A3),مجدول_الأحداث[قيمة فريدة (محسوبة)],0),2),\"\")","v":""},{"$f":"IFERROR(INDEX(مجدول_الأحداث[],MATCH($H$34&\"|\"&ROW(A3),مجدول_الأحداث[قيمة فريدة (محسوبة)],0),3),\"\")","v":""}]
[{"$nulls":4},{"$f":"'الفاصل الزمني'!E33","v":"13:30:00"},{"$f":"IFERROR(INDEX(مجدول_الأحداث[],MATCH(DATEVALUE(DateVal)&الجدول_اليومي[[#This Row],[الوقت]],LookUpDateAndTime,0),3),\"\")","v":"الاتصال بالشركة"},null,{"$f":"IFERROR(DateVal+6,\"\")","v":"2022-07-04"},{"$f":"IFERROR(INDEX(مجدول_الأحداث[],MATCH($H$34&\"|\"&ROW(A4),مجدول_الأحداث[قيمة فريدة (محسوبة)],0),2),\"\")","v":""},{"$f":"IFERROR(INDEX(مجدول_الأحداث[],MATCH($H$34&\"|\"&ROW(A4),مجدول_الأحداث[قيمة فريدة (محسوبة)],0),3),\"\")","v":""}]
[{"$nulls":4},{"$f":"'الفاصل الزمني'!E34","v":"13:45:00"},{"$f":"IFERROR(INDEX(مجدول_الأحداث[],MATCH(DATEVALUE(DateVal)&الجدول_اليومي[[#This Row],[الوقت]],LookUpDateAndTime,0),3),\"\")","v":""},null,null,{"$f":"IFERROR(INDEX(مجدول_الأحداث[],MATCH($H$34&\"|\"&ROW(A5),مجدول_الأحداث[قيمة فريدة (محسوبة)],0),2),\"\")","v":""},{"$f":"IFERROR(INDEX(مجدول_الأحداث[],MATCH($H$34&\"|\"&ROW(A5),مجدول_الأحداث[قيمة فريدة (محسوبة)],0),3),\"\")","v":""}]
[{"$nulls":4},{"$f":"'الفاصل الزمني'!E35","v":"14:00:00"},{"$f":"IFERROR(INDEX(مجدول_الأحداث[],MATCH(DATEVALUE(DateVal)&الجدول_اليومي[[#This Row],[الوقت]],LookUpDateAndTime,0),3),\"\")","v":""}]
[{"$nulls":4},{"$f":"'الفاصل الزمني'!E36","v":"14:15:00"},{"$f":"IFERROR(INDEX(مجدول_الأحداث[],MATCH(DATEVALUE(DateVal)&الجدول_اليومي[[#This Row],[الوقت]],LookUpDateAndTime,0),3),\"\")","v":""}]
[{"$nulls":4},{"$f":"'الفاصل الزمني'!E37","v":"14:30:00"},{"$f":"IFERROR(INDEX(مجدول_الأحداث[],MATCH(DATEVALUE(DateVal)&الجدول_اليومي[[#This Row],[الوقت]],LookUpDateAndTime,0),3),\"\")","v":""}]
[{"$nulls":4},{"$f":"'الفاصل الزمني'!E38","v":"14:45:00"},{"$f":"IFERROR(INDEX(مجدول_الأحداث[],MATCH(DATEVALUE(DateVal)&الجدول_اليومي[[#This Row],[الوقت]],LookUpDateAndTime,0),3),\"\")","v":""}]
[{"$nulls":4},{"$f":"'الفاصل الزمني'!E39","v":"15:00:00"},{"$f":"IFERROR(INDEX(مجدول_الأحداث[],MATCH(DATEVALUE(DateVal)&الجدول_اليومي[[#This Row],[الوقت]],LookUpDateAndTime,0),3),\"\")","v":"استراحة"}]
[{"$nulls":4},{"$f":"'الفاصل الزمني'!E40","v":"15:15:00"},{"$f":"IFERROR(INDEX(مجدول_الأحداث[],MATCH(DATEVALUE(DateVal)&الجدول_اليومي[[#This Row],[الوقت]],LookUpDateAndTime,0),3),\"\")","v":""}]
[{"$nulls":4},{"$f":"'الفاصل الزمني'!E41","v":"15:30:00"},{"$f":"IFERROR(INDEX(مجدول_الأحداث[],MATCH(DATEVALUE(DateVal)&الجدول_اليومي[[#This Row],[الوقت]],LookUpDateAndTime,0),3),\"\")","v":""}]
[{"$nulls":4},{"$f":"'الفاصل الزمني'!E42","v":"15:45:00"},{"$f":"IFERROR(INDEX(مجدول_الأحداث[],MATCH(DATEVALUE(DateVal)&الجدول_اليومي[[#This Row],[الوقت]],LookUpDateAndTime,0),3),\"\")","v":""}]
[{"$nulls":4},{"$f":"'الفاصل الزمني'!E43","v":"16:00:00"},{"$f":"IFERROR(INDEX(مجدول_الأحداث[],MATCH(DATEVALUE(DateVal)&الجدول_اليومي[[#This Row],[الوقت]],LookUpDateAndTime,0),3),\"\")","v":""}]
[{"$nulls":4},{"$f":"'الفاصل الزمني'!E44","v":"16:15:00"},{"$f":"IFERROR(INDEX(مجدول_الأحداث[],MATCH(DATEVALUE(DateVal)&الجدول_اليومي[[#This Row],[الوقت]],LookUpDateAndTime,0),3),\"\")","v":""}]
[{"$nulls":4},{"$f":"'الفاصل الزمني'!E45","v":"16:30:00"},{"$f":"IFERROR(INDEX(مجدول_الأحداث[],MATCH(DATEVALUE(DateVal)&الجدول_اليومي[[#This Row],[الوقت]],LookUpDateAndTime,0),3),\"\")","v":""}]
[{"$nulls":4},{"$f":"'الفاصل الزمني'!E46","v":"16:45:00"},{"$f":"IFERROR(INDEX(مجدول_الأحداث[],MATCH(DATEVALUE(DateVal)&الجدول_اليومي[[#This Row],[الوقت]],LookUpDateAndTime,0),3),\"\")","v":""}]
[{"$nulls":4},{"$f":"'الفاصل الزمني'!E47","v":"17:00:00"},{"$f":"IFERROR(INDEX(مجدول_الأحداث[],MATCH(DATEVALUE(DateVal)&الجدول_اليومي[[#This Row],[الوقت]],LookUpDateAndTime,0),3),\"\")","v":"العودة إلى المنزل"}]
[{"$nulls":4},{"$f":"'الفاصل الزمني'!E48","v":"17:15:00"},{"$f":"IFERROR(INDEX(مجدول_الأحداث[],MATCH(DATEVALUE(DateVal)&الجدول_اليومي[[#This Row],[الوقت]],LookUpDateAndTime,0),3),\"\")","v":""}]
[{"$nulls":4},{"$f":"'الفاصل الزمني'!E49","v":"17:30:00"},{"$f":"IFERROR(INDEX(مجدول_الأحداث[],MATCH(DATEVALUE(DateVal)&الجدول_اليومي[[#This Row],[الوقت]],LookUpDateAndTime,0),3),\"\")","v":""}]
[{"$nulls":4},{"$f":"'الفاصل الزمني'!E50","v":"17:45:00"},{"$f":"IFERROR(INDEX(مجدول_الأحداث[],MATCH(DATEVALUE(DateVal)&الجدول_اليومي[[#This Row],[الوقت]],LookUpDateAndTime,0),3),\"\")","v":""}]
[{"$nulls":4},{"$f":"'الفاصل الزمني'!E51","v":"18:00:00"},{"$f":"IFERROR(INDEX(مجدول_الأحداث[],MATCH(DATEVALUE(DateVal)&الجدول_اليومي[[#This Row],[الوقت]],LookUpDateAndTime,0),3),\"\")","v":"تدريب كرة القدم"}]
[{"$nulls":4},{"$f":"'الفاصل الزمني'!E52","v":"18:15:00"},{"$f":"IFERROR(INDEX(مجدول_الأحداث[],MATCH(DATEVALUE(DateVal)&الجدول_اليومي[[#This Row],[الوقت]],LookUpDateAndTime,0),3),\"\")","v":""}]
[{"$nulls":4},{"$f":"'الفاصل الزمني'!E53","v":"18:30:00"},{"$f":"IFERROR(INDEX(مجدول_الأحداث[],MATCH(DATEVALUE(DateVal)&الجدول_اليومي[[#This Row],[الوقت]],LookUpDateAndTime,0),3),\"\")","v":""}]
[{"$nulls":4},{"$f":"'الفاصل الزمني'!E54","v":"18:45:00"},{"$f":"IFERROR(INDEX(مجدول_الأحداث[],MATCH(DATEVALUE(DateVal)&الجدول_اليومي[[#This Row],[الوقت]],LookUpDateAndTime,0),3),\"\")","v":""}]
[{"$nulls":4},{"$f":"'الفاصل الزمني'!E55","v":"19:00:00"},{"$f":"IFERROR(INDEX(مجدول_الأحداث[],MATCH(DATEVALUE(DateVal)&الجدول_اليومي[[#This Row],[الوقت]],LookUpDateAndTime,0),3),\"\")","v":""}]
[{"$nulls":4},{"$f":"'الفاصل الزمني'!E56","v":"19:15:00"},{"$f":"IFERROR(INDEX(مجدول_الأحداث[],MATCH(DATEVALUE(DateVal)&الجدول_اليومي[[#This Row],[الوقت]],LookUpDateAndTime,0),3),\"\")","v":""}]
[{"$nulls":4},{"$f":"'الفاصل الزمني'!E57","v":"19:30:00"},{"$f":"IFERROR(INDEX(مجدول_الأحداث[],MATCH(DATEVALUE(DateVal)&الجدول_اليومي[[#This Row],[الوقت]],LookUpDateAndTime,0),3),\"\")","v":""}]
[{"$nulls":4},{"$f":"'الفاصل الزمني'!E58","v":"19:45:00"},{"$f":"IFERROR(INDEX(مجدول_الأحداث[],MATCH(DATEVALUE(DateVal)&الجدول_اليومي[[#This Row],[الوقت]],LookUpDateAndTime,0),3),\"\")","v":""}]
[{"$nulls":4},{"$f":"'الفاصل الزمني'!E59","v":"20:00:00"},{"$f":"IFERROR(INDEX(مجدول_الأحداث[],MATCH(DATEVALUE(DateVal)&الجدول_اليومي[[#This Row],[الوقت]],LookUpDateAndTime,0),3),\"\")","v":""}]
[{"$nulls":4},{"$f":"'الفاصل الزمني'!E60","v":"20:15:00"},{"$f":"IFERROR(INDEX(مجدول_الأحداث[],MATCH(DATEVALUE(DateVal)&الجدول_اليومي[[#This Row],[الوقت]],LookUpDateAndTime,0),3),\"\")","v":""}]
[{"$nulls":4},{"$f":"'الفاصل الزمني'!E61","v":"20:30:00"},{"$f":"IFERROR(INDEX(مجدول_الأحداث[],MATCH(DATEVALUE(DateVal)&الجدول_اليومي[[#This Row],[الوقت]],LookUpDateAndTime,0),3),\"\")","v":""}]
[{"$nulls":4},{"$f":"'الفاصل الزمني'!E62","v":"20:45:00"},{"$f":"IFERROR(INDEX(مجدول_الأحداث[],MATCH(DATEVALUE(DateVal)&الجدول_اليومي[[#This Row],[الوقت]],LookUpDateAndTime,0),3),\"\")","v":""}]
[{"$nulls":4},{"$f":"'الفاصل الزمني'!E63","v":"21:00:00"},{"$f":"IFERROR(INDEX(مجدول_الأحداث[],MATCH(DATEVALUE(DateVal)&الجدول_اليومي[[#This Row],[الوقت]],LookUpDateAndTime,0),3),\"\")","v":""}]
[{"$nulls":4},{"$f":"'الفاصل الزمني'!E64","v":""},{"$f":"IFERROR(INDEX(مجدول_الأحداث[],MATCH(DATEVALUE(DateVal)&الجدول_اليومي[[#This Row],[الوقت]],LookUpDateAndTime,0),3),\"\")","v":""}]
[{"$nulls":4},{"$f":"'الفاصل الزمني'!E65","v":""},{"$f":"IFERROR(INDEX(مجدول_الأحداث[],MATCH(DATEVALUE(DateVal)&الجدول_اليومي[[#This Row],[الوقت]],LookUpDateAndTime,0),3),\"\")","v":""}]
[{"$nulls":4},{"$f":"'الفاصل الزمني'!E66","v":""},{"$f":"IFERROR(INDEX(مجدول_الأحداث[],MATCH(DATEVALUE(DateVal)&الجدول_اليومي[[#This Row],[الوقت]],LookUpDateAndTime,0),3),\"\")","v":""}]
[{"$nulls":4},{"$f":"'الفاصل الزمني'!E67","v":""},{"$f":"IFERROR(INDEX(مجدول_الأحداث[],MATCH(DATEVALUE(DateVal)&الجدول_اليومي[[#This Row],[الوقت]],LookUpDateAndTime,0),3),\"\")","v":""}]
[{"$nulls":4},{"$f":"'الفاصل الزمني'!E68","v":""},{"$f":"IFERROR(INDEX(مجدول_الأحداث[],MATCH(DATEVALUE(DateVal)&الجدول_اليومي[[#This Row],[الوقت]],LookUpDateAndTime,0),3),\"\")","v":""}]
[{"$nulls":4},{"$f":"'الفاصل الزمني'!E69","v":""},{"$f":"IFERROR(INDEX(مجدول_الأحداث[],MATCH(DATEVALUE(DateVal)&الجدول_اليومي[[#This Row],[الوقت]],LookUpDateAndTime,0),3),\"\")","v":""}]
[{"$nulls":4},{"$f":"'الفاصل الزمني'!E70","v":""},{"$f":"IFERROR(INDEX(مجدول_الأحداث[],MATCH(DATEVALUE(DateVal)&الجدول_اليومي[[#This Row],[الوقت]],LookUpDateAndTime,0),3),\"\")","v":""}]
[{"$nulls":4},{"$f":"'الفاصل الزمني'!E71","v":""},{"$f":"IFERROR(INDEX(مجدول_الأحداث[],MATCH(DATEVALUE(DateVal)&الجدول_اليومي[[#This Row],[الوقت]],LookUpDateAndTime,0),3),\"\")","v":""}]
[{"$nulls":4},{"$f":"'الفاصل الزمني'!E72","v":""},{"$f":"IFERROR(INDEX(مجدول_الأحداث[],MATCH(DATEVALUE(DateVal)&الجدول_اليومي[[#This Row],[الوقت]],LookUpDateAndTime,0),3),\"\")","v":""}]
[{"$nulls":4},{"$f":"'الفاصل الزمني'!E73","v":""},{"$f":"IFERROR(INDEX(مجدول_الأحداث[],MATCH(DATEVALUE(DateVal)&الجدول_اليومي[[#This Row],[الوقت]],LookUpDateAndTime,0),3),\"\")","v":""}]
[{"$nulls":4},{"$f":"'الفاصل الزمني'!E74","v":""},{"$f":"IFERROR(INDEX(مجدول_الأحداث[],MATCH(DATEVALUE(DateVal)&الجدول_اليومي[[#This Row],[الوقت]],LookUpDateAndTime,0),3),\"\")","v":""}]
[{"$nulls":4},{"$f":"'الفاصل الزمني'!E75","v":""},{"$f":"IFERROR(INDEX(مجدول_الأحداث[],MATCH(DATEVALUE(DateVal)&الجدول_اليومي[[#This Row],[الوقت]],LookUpDateAndTime,0),3),\"\")","v":""}]

{"sheet":"مجدول الأحداث","index":1,"n_rows":15,"n_cols":8,"rows_kept":15,"merged":[[0,1,0,2],[1,1,4,2],[5,1,6,2],[7,1,7,2]]}
[null,"مجدول الأحداث"]
[null,{"$f":"DAY(DateVal)","v":28},null,null,"التاريخ","الوقت","الوصف","قيمة فريدة (محسوبة)"]
[{"$nulls":4},{"$f":"TODAY()","v":"2022-06-28"},"06:00:00","الاستيقاظ",{"$f":"مجدول_الأحداث[[#This Row],[التاريخ]]&\"|\"&COUNTIF($E$3:E3,E3)","v":"44740|1"}]
[{"$nulls":4},{"$f":"TODAY()","v":"2022-06-28"},"06:30:00","الاستحمام",{"$f":"مجدول_الأحداث[[#This Row],[التاريخ]]&\"|\"&COUNTIF($E$3:E4,E4)","v":"44740|2"}]
[{"$nulls":4},"2022-06-28","07:30:00","المغادرة للعمل",{"$f":"مجدول_الأحداث[[#This Row],[التاريخ]]&\"|\"&COUNTIF($E$3:E5,E5)","v":"44740|3"}]
[null,{"$f":"TEXT(DateVal,\"dddd\")","v":"الثلاثاء"},null,null,"2022-06-28","08:00:00","بدء الوردية",{"$f":"مجدول_الأحداث[[#This Row],[التاريخ]]&\"|\"&COUNTIF($E$3:E6,E6)","v":"44740|4"}]
[{"$nulls":4},"2022-06-28","10:00:00","استراحة",{"$f":"مجدول_الأحداث[[#This Row],[التاريخ]]&\"|\"&COUNTIF($E$3:E7,E7)","v":"44740|5"}]
[null,{"$f":"DateVal","v":"28 يونيو 2022"},null,null,"2022-06-28","12:00:00","الغداء",{"$f":"مجدول_الأحداث[[#This Row],[التاريخ]]&\"|\"&COUNTIF($E$3:E8,E8)","v":"44740|6"}]
[{"$nulls":4},"2022-06-28","13:00:00","العودة إلى العمل",{"$f":"مجدول_الأحداث[[#This Row],[التاريخ]]&\"|\"&COUNTIF($E$3:E9,E9)","v":"44740|7"}]
[null,"حدد لتحرير الفواصل الزمنية",null,null,"2022-06-28","13:30:00","الاتصال بالشركة",{"$f":"مجدول_الأحداث[[#This Row],[التاريخ]]&\"|\"&COUNTIF($E$3:E10,E10)","v":"44740|8"}]
[{"$nulls":4},"2022-06-28","15:00:00","استراحة",{"$f":"مجدول_الأحداث[[#This Row],[التاريخ]]&\"|\"&COUNTIF($E$3:E11,E11)","v":"44740|9"}]
[null,"حدد لعرض الجدول اليومي",null,null,"2022-06-28","17:00:00","العودة إلى المنزل",{"$f":"مجدول_الأحداث[[#This Row],[التاريخ]]&\"|\"&COUNTIF($E$3:E12,E12)","v":"44740|10"}]
[{"$nulls":4},"2022-06-28","18:00:00","تدريب كرة القدم",{"$f":"مجدول_الأحداث[[#This Row],[التاريخ]]&\"|\"&COUNTIF($E$3:E13,E13)","v":"44740|11"}]
[{"$nulls":4},{"$f":"TODAY()+1","v":"2022-06-29"},"06:30:00","الإفطار",{"$f":"مجدول_الأحداث[[#This Row],[التاريخ]]&\"|\"&COUNTIF($E$3:E15,E14)","v":"44741|2"}]
[{"$nulls":4},{"$f":"TODAY()+1","v":"2022-06-29"},"07:30:00","المغادرة للعمل",{"$f":"مجدول_الأحداث[[#This Row],[التاريخ]]&\"|\"&COUNTIF($E$3:E15,E15)","v":"44741|2"}]

{"sheet":"الفاصل الزمني","index":2,"n_rows":75,"n_cols":5,"rows_kept":75,"merged":[[0,1,0,2],[1,1,1,2],[9,1,9,2]]}
[null,"الفاصل الزمني"]
[null,"تحرير الجدول الزمني",null,null,"الوقت"]
[{"$nulls":4},{"$f":"Start_time","v":"06:00:00"}]
[null,"وقت البدء","06:00:00",null,{"$f":"IFERROR(IF($E3+Increment>EndTime,\"\",$E3+Increment),\"\")","v":"06:15:00"}]
[{"$nulls":4},"06:30:00"]
[null,"الفاصل الزمني:","15 دقيقة",null,"06:45:00"]
[{"$nulls":4},"07:00:00"]
[null,"وقت الانتهاء","21:00:00",null,"07:15:00"]
[{"$nulls":4},"07:30:00"]
[null,"عرض الجدول",null,null,"07:45:00"]
[{"$nulls":4},"08:00:00"]
[null,"حدد لعرض الجدول اليومي",null,null,"08:15:00"]
[{"$nulls":4},"08:30:00"]
[null,"حدد لإضافة حدث جديد",null,null,"08:45:00"]
[{"$nulls":4},"09:00:00"]
[{"$nulls":4},"09:15:00"]
[{"$nulls":4},"09:30:00"]
[{"$nulls":4},"09:45:00"]
[{"$nulls":4},"10:00:00"]
[{"$nulls":4},"10:15:00"]
[{"$nulls":4},"10:30:00"]
[{"$nulls":4},"10:45:00"]
[{"$nulls":4},"11:00:00"]
[{"$nulls":4},"11:15:00"]
[{"$nulls":4},"11:30:00"]
[{"$nulls":4},"11:45:00"]
[{"$nulls":4},"12:00:00"]
[{"$nulls":4},"12:15:00"]
[{"$nulls":4},"12:30:00"]
[{"$nulls":4},"12:45:00"]
[{"$nulls":4},"13:00:00"]
[{"$nulls":4},"13:15:00"]
[{"$nulls":4},"13:30:00"]
[{"$nulls":4},"13:45:00"]
[{"$nulls":4},"14:00:00"]
[{"$nulls":4},{"$f":"IFERROR(IF($E35+Increment>EndTime,\"\",$E35+Increment),\"\")","v":"14:15:00"}]
[{"$nulls":4},"14:30:00"]
[{"$nulls":4},"14:45:00"]
[{"$nulls":4},"15:00:00"]
[{"$nulls":4},"15:15:00"]
[{"$nulls":4},"15:30:00"]
[{"$nulls":4},"15:45:00"]
[{"$nulls":4},"16:00:00"]
[{"$nulls":4},"16:15:00"]
[{"$nulls":4},"16:30:00"]
[{"$nulls":4},"16:45:00"]
[{"$nulls":4},"17:00:00"]
[{"$nulls":4},"17:15:00"]
[{"$nulls":4},"17:30:00"]
[{"$nulls":4},"17:45:00"]
[{"$nulls":4},"18:00:00"]
[{"$nulls":4},"18:15:00"]
[{"$nulls":4},"18:30:00"]
[{"$nulls":4},"18:45:00"]
[{"$nulls":4},"19:00:00"]
[{"$nulls":4},"19:15:00"]
[{"$nulls":4},"19:30:00"]
[{"$nulls":4},"19:45:00"]
[{"$nulls":4},"20:00:00"]
[{"$nulls":4},"20:15:00"]
[{"$nulls":4},"20:30:00"]
[{"$nulls":4},"20:45:00"]
[{"$nulls":4},"21:00:00"]
[{"$nulls":4},""]
[{"$nulls":4},""]
[{"$nulls":4},""]
[{"$nulls":4},""]
[{"$nulls":4},{"$f":"IFERROR(IF($E67+Increment>EndTime,\"\",$E67+Increment),\"\")","v":""}]
[{"$nulls":4},""]
[{"$nulls":4},""]
[{"$nulls":4},""]
[{"$nulls":4},""]
[{"$nulls":4},""]
[{"$nulls":4},""]
[{"$nulls":4},""]